bitfinex-derivatives/quotes_SOLF0:USTF0_20251202
["timestamp","ask_amount","ask_price","bid_price","bid_amount"]
[1764665363014,7.1224,126.37,126.36,0.05516611]
[1764665368207,110.8129,126.35,126.3,3.25]
[1764665368406,2.38091863,126.34,126.3,3.25]
[1764665368804,7.1253,126.32,126.3,3.25]
[1764665369314,7.17865254,126.32,126.3,3.29992166]
[1764665385327,0.05335254,126.32,126.3,3.29992166]
[1764665393435,0.05335254,126.32,126.31,71.18]
[1764665393631,2.38091863,126.38,126.32,3.28]
[1764665394532,0.05343601,126.36,126.34,3.34091563]
[1764665395538,7.17643601,126.36,126.34,3.34091563]
[1764665395740,0.05343601,126.36,126.34,3.34091563]
[1764665396940,7.1235,126.35,126.34,0.06091563]
[1764665397337,110.819,126.35,126.29,71.18]
[1764665397537,2.38091863,126.34,126.3,3.28]
[1764665398234,0.05179811,126.33,126.31,0.05808224]
[1764665398440,0.05179811,126.33,126.31,3.33808224]
[1764665399338,7.1252,126.32,126.31,3.33808224]
[1764665399638,7.1252,126.32,126.31,0.05808224]
[1764665399837,9.50611863,126.32,126.31,0.05808224]
[1764665403941,7.128,126.28,126.26,3.28]
[1764665404844,9.55879592,126.28,126.26,3.33944402]
[1764665406337,9.55879592,126.28,126.26,0.05944402]
[1764665407945,7.1306,126.23,126.2,3.28]
[1764665408842,7.18808872,126.23,126.2,3.33044078]
[1764665410745,7.1312,126.22,126.2,3.33044078]
[1764665411047,7.1312,126.22,126.2,0.05044078]
[1764665411442,7.1312,126.22,126.2,3.43044078]
[1764665416340,0.05748872,126.23,126.2,3.43044078]
[1764665416543,110.97708872,126.23,126.2,0.05044078]
[1764665416740,3.72675903,126.22,126.2,0.05044078]
[1764665417638,10.85765903,126.22,126.2,0.05044078]
[1764665418355,1.58,126.21,126.11,3.38]
[1764665418551,7.135,126.15,126.11,3.38]
[1764665419260,7.1358,126.14,126.08,3.38]
[1764665419454,0.05782997,126.12,126.1,3.43206702]
[1764665422954,7.1344,126.16,126.1,3.43206702]
[1764665423449,7.1356,126.14,126.1,3.43206702]
[1764665423650,110.9922,126.15,126.1,3.43206702]
[1764665423853,3.78041983,126.14,126.1,3.43206702]
[1764665424158,3.78041983,126.14,126.1,0.05206702]
[1764665424763,7.1368,126.12,126.1,0.05206702]
[1764665426261,10.86355903,126.12,126.1,0.05206702]
[1764665431576,0.0536608,126.14,126.1,3.43206702]
[1764665432879,114.77861983,126.14,126.1,0.05206702]
[1764665433176,3.72675903,126.12,126.1,0.05206702]
[1764665433375,114.77861983,126.14,126.1,0.05206702]
[1764665433576,0.0536608,126.14,126.1,3.17206702]
[1764665434373,7.1891608,126.14,126.1,3.17206702]
[1764665434772,0.0536608,126.14,126.1,3.17206702]
[1764665438577,0.0536608,126.14,126.1,71.15206702]
[1764665438780,0.0536608,126.14,126.11,3.39]
[1764665439777,114.66855903,126.21,126.12,3.39]
[1764665439980,110.9429,126.2,126.12,3.39]
[1764665440889,0.05463124,126.17,126.15,3.44127159]
[1764665441284,7.1342,126.16,126.15,3.44127159]
[1764665441490,7.1342,126.16,126.15,0.05127159]
[1764665446791,0.05463124,126.17,126.15,3.44127159]
[1764665449592,0.05463124,126.17,126.15,0.05127159]
[1764665450879,7.18843124,126.17,126.15,0.05127159]
[1764665452989,7.18843124,126.17,126.15,3.44127159]
[1764665453786,7.18843124,126.17,126.15,0.05127159]
[1764665454597,7.1342,126.16,126.15,0.05127159]
[1764665461206,7.1342,126.16,126.15,3.44127159]
[1764665461503,7.1342,126.16,126.15,0.05127159]
[1764665463200,10.86095903,126.16,126.15,0.05127159]
[1764665464599,7.1342,126.16,126.15,0.05127159]
[1764665464801,7.1342,126.16,126.15,3.44127159]
[1764665465905,0.05463124,126.17,126.15,3.44127159]
[1764665482229,7.18863124,126.17,126.15,3.44127159]
[1764665486934,2.38688334,126.16,126.15,0.05127159]
[1764665487929,9.52108334,126.16,126.15,0.05127159]
[1764665488132,3.96688334,126.16,126.1,3.23]
[1764665488434,2.38688334,126.13,126.1,3.23]
[1764665488828,9.52288334,126.13,126.1,3.23]
[1764665489234,9.58380764,126.13,126.1,3.29044883]
[1764665493136,2.44780764,126.13,126.1,3.29044883]
[1764665493741,7.1365,126.12,126.1,3.29044883]
[1764665494541,7.1371,126.11,126.1,0.06044883]
[1764665494937,2.44780764,126.13,126.1,3.49044883]
[1764665496447,7.1365,126.12,126.1,3.49044883]
[1764665497148,7.1371,126.11,126.1,0.06044883]
[1764665498346,7.1371,126.11,126.1,3.49044883]
[1764665498948,2.44780764,126.13,126.1,3.49044883]
[1764665500443,7.1365,126.12,126.1,3.49044883]
[1764665504152,0.0609243,126.13,126.1,3.49044883]
[1764665506859,7.1969243,126.13,126.1,3.49044883]
[1764665512461,0.0609243,126.13,126.11,3.21]
[1764665512763,0.0609243,126.13,126.12,71.15]
[1764665514258,7.1343,126.16,126.13,3.21]
[1764665515367,7.18568318,126.16,126.13,3.26706227]
[1764665515966,0.05138318,126.16,126.13,3.26706227]
[1764665516665,2.38688334,126.2,126.15,3.21]
[1764665516967,7.1314,126.21,126.17,3.21]
[1764665517368,2.38688334,126.22,126.17,3.21]
[1764665517569,0.05909941,126.21,126.18,0.05436963]
[1764665518364,7.1321,126.2,126.18,0.05436963]
[1764665521171,7.1321,126.2,126.18,3.26436963]
[1764665525276,2.38688334,126.2,126.18,3.26436963]
[1764665525477,2.38688334,126.2,126.18,0.05436963]
[1764665525876,110.9533,126.19,126.12,10.3462]
[1764665526081,2.38688334,126.16,126.12,3.21]
[1764665526374,2.38688334,126.16,126.11,3.21]
[1764665526962,0.05600272,126.15,126.12,0.06073948]
[1764665527166,0.05600272,126.15,126.12,3.27073948]
[1764665527377,7.1355,126.14,126.12,3.27073948]
[1764665528063,0.05600272,126.15,126.12,3.27073948]
[1764665529370,0.05600272,126.15,126.14,3.22]
[1764665530781,7.1331,126.19,126.14,3.22]
[1764665530975,7.1331,126.19,126.16,3.22]
[1764665531874,7.188241,126.19,126.16,3.27960811]
[1764665532075,7.1331,126.18,126.16,3.27960811]
[1764665533384,7.187741,126.19,126.16,3.27960811]
[1764665533876,0.055141,126.19,126.16,3.27960811]
[1764665534385,0.055141,126.19,126.16,10.41380811]
[1764665534587,0.055141,126.19,126.17,3.22]
[1764665535988,0.055141,126.19,126.16,71.17960811]
[1764665536477,0.055141,126.19,126.17,3.22]
[1764665536678,7.188041,126.19,126.17,3.22]
[1764665541282,0.055141,126.19,126.17,3.22]
[1764665542589,0.055141,126.19,126.18,3.18]
[1764665546089,0.055141,126.19,126.16,3.23960811]
[1764665546391,0.055141,126.19,126.17,3.18]
[1764665549893,0.055141,126.19,126.17,10.3135]
[1764665550293,0.055141,126.19,126.18,3.18]
[1764665552983,0.055141,126.19,126.18,71.06]
[1764665554420,0.055141,126.19,126.18,3.18]
[1764665554603,0.055141,126.19,126.18,71.06]
[1764665556113,0.055141,126.19,126.18,3.18]
[1764665556413,0.055141,126.19,126.18,71.06]
[1764665556913,7.13,126.24,126.19,3.13]
[1764665557817,0.05776467,126.23,126.21,3.13]
[1764665559216,7.18806467,126.23,126.21,3.13]
[1764665560717,0.05776467,126.23,126.21,3.13]
[1764665564423,9.68986,126.26,126.22,3.2]
[1764665564623,9.68986,126.26,126.24,3.2]
[1764665565320,2.56116,126.26,126.24,3.2]
[1764665565521,2.56116,126.26,126.24,3.25783185]
[1764665566422,0.06752337,126.26,126.24,3.25783185]
[1764665566624,7.1272,126.29,126.24,3.25783185]
[1764665566826,114.5504019,126.34,126.24,3.25783185]
[1764665567123,114.5504019,126.34,126.28,3.25645766]
[1764665567321,114.5504019,126.34,126.28,71.11645766]
[1764665568413,114.5504019,126.34,126.29,3.2]
[1764665569014,7.1258,126.31,126.29,3.2]
[1764665569219,7.1258,126.31,126.28,3.25645766]
[1764665572121,7.125,126.33,126.28,3.25645766]
[1764665573327,7.125,126.33,126.29,3.2]
[1764665573822,7.1253,126.32,126.28,0.05645766]
[1764665574023,110.8304,126.33,126.29,0.05779567]
[1764665575119,7.126,126.31,126.29,0.05779567]
[1764665577731,7.126,126.31,126.29,3.25779567]
[1764665577932,114.5550019,126.34,126.29,3.25779567]
[1764665577933,7.125,126.33,126.29,3.25779567]
[1764665578317,3.7296019,126.34,126.29,3.25779567]
[1764665578815,7.1253,126.32,126.29,0.05779567]
[1764665579825,7.126,126.31,126.29,0.05779567]
[1764665581026,117.9589,126.33,126.29,0.05779567]
[1764665581219,114.5712019,126.32,126.29,0.05779567]
[1764665586325,7.1263,126.3,126.29,0.05779567]
[1764665592429,113.23891307,126.3,126.23,3.3]
[1764665592822,110.8637,126.29,126.23,3.3]
[1764665593429,0.05705975,126.27,126.25,3.350778]
[1764665593626,7.18545975,126.27,126.25,3.350778]
[1764665594127,0.05705975,126.27,126.25,3.350778]
[1764665596934,7.18505975,126.27,126.25,3.350778]
[1764665597334,0.05705975,126.27,126.25,3.350778]
[1764665598226,0.05705975,126.27,126.25,10.479778]
[1764665598431,0.05705975,126.27,126.26,3.3]
[1764665606636,0.05705975,126.27,126.26,71.12]
[1764665609534,0.05705975,126.27,126.26,78.2486]
[1764665611230,0.05705975,126.27,126.26,71.12]
[1764665616945,0.05705975,126.27,126.26,3.3]
[1764665617139,0.05705975,126.27,126.26,71.1]
[1764665617643,0.05705975,126.27,126.26,3.3]
[1764665618343,7.18505975,126.27,126.26,3.3]
[1764665624951,0.05705975,126.27,126.26,3.3]
[1764665627741,2.38331307,126.32,126.26,3.3]
[1764665628643,2.38331307,126.32,126.28,3.16858454]
[1764665629353,9.50861307,126.32,126.28,3.16858454]
[1764665630257,7.1258,126.31,126.28,3.16858454]
[1764665633862,7.1265,126.3,126.28,3.16858454]
[1764665646976,7.1265,126.3,126.28,0.05858454]
[1764665647178,9.50981307,126.3,126.28,0.05858454]
[1764665647677,7.1269,126.29,126.28,0.05858454]
[1764665656181,7.1269,126.29,126.28,3.31858454]
[1764665661291,7.1261,126.31,126.28,3.31858454]
[1764665667589,7.1266,126.3,126.28,3.31858454]
[1764665670489,7.1266,126.3,126.28,0.05858454]
[1764665671691,7.1269,126.29,126.28,0.05858454]
[1764665672492,7.128,126.28,126.24,3.26]
[1764665673286,7.1265,126.3,126.24,3.26]
[1764665673488,0.05273775,126.28,126.27,3.26]
[1764665675591,7.1258,126.32,126.27,3.26]
[1764665675797,7.1246,126.34,126.29,3.26]
[1764665675996,4.07406812,126.33,126.29,3.26]
[1764665676195,7.1246,126.34,126.29,3.26]
[1764665676496,7.1247,126.33,126.29,3.26]
[1764665676698,7.1247,126.33,126.3,3.31848675]
[1764665683803,7.1253,126.32,126.3,3.31848675]
[1764665684203,110.8207,126.34,126.3,3.31848675]
[1764665684408,110.8207,126.34,126.3,0.05848675]
[1764665684793,114.57025099,126.31,126.25,3.1]
[1764665685702,110.9024,126.25,126.21,22.64147244]
[1764665685908,110.9024,126.25,126.19,3.1]
[1764665685909,3.77875227,126.24,126.22,0.0586903]
[1764665686301,7.1305,126.23,126.22,0.0586903]
[1764665688106,7.1323,126.2,126.16,3.1]
[1764665688307,10.85565099,126.2,126.16,3.1]
[1764665689103,0.05128317,126.19,126.17,3.1567069]
[1764665701728,0.05128317,126.19,126.18,71.02]
[1764665701925,0.05128317,126.19,126.17,0.0567069]
[1764665702124,3.77463416,126.19,126.17,0.0567069]
[1764665702720,0.05128317,126.19,126.17,0.0567069]
[1764665703121,3.77463416,126.19,126.17,0.0567069]
[1764665703325,10.90763416,126.19,126.17,0.0567069]
[1764665706225,7.18428317,126.19,126.17,0.0567069]
[1764665707532,12.48763416,126.19,126.17,0.0567069]
[1764665708434,7.1351,126.15,126.11,3.27]
[1764665709331,0.05425905,126.14,126.12,0.05354808]
[1764665712236,0.05425905,126.14,126.12,3.32354808]
[1764665716639,0.05425905,126.14,126.08,2.38860502]
[1764665716640,111.0164,126.12,126.06,3.27]
[1764665716841,2.38860502,126.08,126.06,3.27]
[1764665717228,2.38860502,126.1,126.06,3.27]
[1764665717631,111.0221,126.11,126.07,3.32568707]
[1764665717632,0.05658117,126.09,126.07,3.32568707]
[1764665719742,0.05658117,126.09,126.06,62.0]
[1764665720044,0.05658117,126.09,126.04,3.27]
[1764665720545,7.1395,126.07,126.04,3.27]
[1764665720944,7.1395,126.07,126.04,3.321212]
[1764665721141,7.19488117,126.09,126.04,3.321212]
[1764665721337,7.19488117,126.09,126.07,3.27]
[1764665721338,0.05658117,126.09,126.07,3.27]
[1764665721541,0.05658117,126.09,126.08,71.71]
[1764665721843,7.1363,126.13,126.09,3.27]
[1764665722936,7.1363,126.13,126.1,3.27]
[1764665723145,0.0501756,126.12,126.1,3.3228957]
[1764665731554,0.0501756,126.12,126.1,10.4604957]
[1764665731748,0.0501756,126.12,126.11,3.22]
[1764665735455,0.0001756,126.12,126.11,3.22]
[1764665738047,0.0001756,126.12,126.11,71.58]
[1764665741147,0.0001756,126.12,126.11,71.56]
[1764665744251,0.0001756,126.12,126.11,71.52]
[1764665754365,0.0001756,126.12,126.11,78.6571]
[1764665757169,0.0001756,126.12,126.11,71.52]
[1764665762569,0.0001756,126.12,126.11,78.6571]
[1764665763272,7.1336,126.18,126.13,3.12]
[1764665764270,7.1336,126.18,126.14,0.06063828]
[1764665764474,110.945,126.2,126.14,0.06063828]
[1764665764475,0.05186462,126.17,126.16,3.12]
[1764665764675,0.05186462,126.17,126.15,71.3299935]
[1764665765363,0.05186462,126.17,126.15,0.0499935]
[1764665765569,0.05186462,126.17,126.15,68.2099935]
[1764665766071,0.05186462,126.17,126.15,71.3299935]
[1764665767775,0.05186462,126.17,126.16,3.12]
[1764665773878,7.18556462,126.17,126.16,3.12]
[1764665775673,0.05186462,126.17,126.16,3.12]
[1764665777078,7.18556462,126.17,126.16,3.12]
[1764665779182,7.18556462,126.17,126.15,0.0499935]
[1764665779378,7.18556462,126.17,126.15,3.2799935]
[1764665779583,7.18556462,126.17,126.15,0.0499935]
[1764665781083,7.18556462,126.17,126.15,3.2799935]
[1764665782087,7.18556462,126.17,126.15,0.0499935]
[1764665784294,7.1342,126.16,126.15,0.0499935]
[1764665792199,10.86375815,126.16,126.15,0.0499935]
[1764665792394,7.1369,126.12,126.09,3.19]
[1764665793097,7.1359,126.14,126.09,3.19]
[1764665793395,0.05702543,126.13,126.11,3.19]
[1764665793597,7.19302543,126.13,126.11,3.19]
[1764665793896,0.05702543,126.13,126.11,3.19]
[1764665797896,0.05702543,126.13,126.12,3.19]
[1764665801899,0.05702543,126.13,126.1,3.20846776]
[1764665802695,7.19352543,126.13,126.1,3.20846776]
[1764665803297,7.1367,126.12,126.1,3.20846776]
[1764665811811,7.1371,126.11,126.1,0.05846776]
[1764665814104,7.1401,126.06,126.03,3.15]
[1764665815207,7.1409,126.05,126.03,0.05866501]
[1764665818107,10.87045815,126.05,126.03,0.05866501]
[1764665819311,7.1444,125.98,125.97,3.15]
[1764665819709,7.1435,126.0,125.97,3.15]
[1764665820413,7.20301591,126.0,125.97,3.20778966]
[1764665820808,0.05951591,126.0,125.97,3.20778966]
[1764665821307,0.05951591,126.0,125.97,4.78778966]
[1764665821717,0.05951591,126.0,125.98,3.15]
[1764665822010,7.1413,126.04,125.99,3.15]
[1764665822918,0.05839646,126.03,126.01,3.15]
[1764665823715,7.1422,126.02,126.0,3.20165177]
[1764665827816,0.05839646,126.03,126.0,3.20165177]
[1764665832818,7.20009646,126.03,126.0,3.20165177]
[1764665835932,7.1423,126.02,126.0,0.05165177]
[1764665836324,3.72955815,126.01,126.0,0.05165177]
[1764665837221,10.87225815,126.01,126.0,0.05165177]
[1764665838323,9.5372746,126.01,126.0,0.05165177]
[1764665840126,7.1444,125.99,125.95,3.28]
[1764665840330,9.5389746,125.99,125.95,3.28]
[1764665841133,0.06044511,125.98,125.96,0.05697465]
[1764665842331,7.20484511,125.98,125.96,0.05697465]
[1764665842839,7.145,125.97,125.96,0.05697465]
[1764665845035,7.145,125.97,125.96,3.33697465]
[1764665845421,7.145,125.97,125.96,0.05697465]
[1764665849028,7.145,125.97,125.96,3.33697465]
[1764665849233,9.5395746,125.97,125.96,0.05697465]
[1764665849536,2.3945746,125.97,125.93,3.28]
[1764665850030,9.5401746,125.97,125.93,3.28]
[1764665850235,7.1456,125.97,125.93,3.28]
[1764665850434,7.1456,125.97,125.91,2.3945746]
[1764665850435,0.05657032,125.96,125.95,3.28]
[1764665850644,2.3945746,126.02,125.95,3.28]
[1764665851143,7.1433,126.0,125.96,3.28]
[1764665851640,0.05446798,125.99,125.97,3.25335918]
[1764665852647,7.19846798,125.99,125.97,0.05335918]
[1764665855144,7.19846798,125.99,125.97,3.25335918]
[1764665857048,7.19846798,125.99,125.97,0.05335918]
[1764665857345,7.1444,125.98,125.97,0.05335918]
[1764665863749,7.1444,125.98,125.97,3.20335918]
[1764665863949,2.44904258,125.99,125.97,3.20335918]
[1764665864254,0.05446798,125.99,125.97,3.20335918]
[1764665864456,0.05446798,125.99,125.97,0.05335918]
[1764665864844,0.05446798,125.99,125.97,3.20335918]
[1764665868951,2.3945746,125.98,125.97,0.05335918]
[1764665869967,9.5389746,125.98,125.97,0.05335918]
[1764665887182,7.1473,125.93,125.92,3.15]
[1764665887384,113.5598746,125.95,125.9,3.15]
[1764665888284,7.1473,125.93,125.92,3.15]
[1764665893390,0.05719301,125.94,125.93,3.39]
[1764665894386,7.20389301,125.94,125.93,3.39]
[1764665894993,0.05719301,125.94,125.93,3.39]
[1764665895694,7.1455,125.97,125.94,3.39]
[1764665896298,111.1377,125.98,125.91,3.39]
[1764665896495,113.5403746,125.97,125.91,3.39]
[1764665896794,7.20660387,125.95,125.93,0.05555531]
[1764665896997,7.20660387,125.95,125.93,3.44555531]
[1764665898990,0.06000387,125.95,125.93,3.44555531]
[1764665901790,0.06000387,125.95,125.93,10.59285531]
[1764665901987,0.06000387,125.95,125.94,3.39]
[1764665903299,0.06000387,125.95,125.94,10.5367]
[1764665908100,0.06000387,125.95,125.94,3.39]
[1764665910798,0.06000387,125.95,125.93,3.44555531]
[1764665910998,7.20610387,125.95,125.93,3.44555531]
[1764665914996,7.1467,125.94,125.93,3.44555531]
[1764665915195,7.1467,125.94,125.93,0.05555531]
[1764665915801,7.1467,125.94,125.93,3.44555531]
[1764665919009,7.1467,125.94,125.93,0.05555531]
[1764665925214,7.1467,125.94,125.93,3.22555531]
[1764665926012,7.1467,125.94,125.93,0.05555531]
[1764665928021,7.20620387,125.95,125.93,3.22555531]
[1764665931825,7.1467,125.94,125.93,3.22555531]
[1764665934726,7.20620387,125.95,125.93,3.22555531]
[1764665938333,0.06000387,125.95,125.93,3.22555531]
[1764665950945,7.20630387,125.95,125.93,3.22555531]
[1764665955849,0.06000387,125.95,125.93,3.22555531]
[1764665958948,0.06000387,125.95,125.94,3.19]
[1764665959149,7.1445,125.98,125.94,3.19]
[1764665959446,3.74282655,126.01,125.94,3.19]
[1764665960048,0.05136242,125.99,125.97,3.19]
[1764665960466,7.19526242,125.99,125.97,3.19]
[1764665962860,0.05136242,125.99,125.97,3.19]
[1764665964664,0.05136242,125.99,125.98,3.19]
[1764665965266,7.1413,126.04,125.99,3.19]
[1764665965557,7.1413,126.04,126.01,3.19]
[1764665965951,7.1413,126.04,126.0,3.19]
[1764665966367,0.05814674,126.03,126.01,3.24180913]
[1764665970865,0.05814674,126.03,126.01,10.38450913]
[1764665971062,0.05814674,126.03,126.02,3.19]
[1764665973472,5.69508,126.05,126.03,3.19]
[1764665974465,110.9825,126.16,126.05,3.19]
[1764665974466,110.9877,126.15,126.05,3.19]
[1764665974670,2.39416458,126.11,126.06,3.19]
[1764665974966,2.39416458,126.1,126.06,3.19]
[1764665975356,0.05398408,126.09,126.07,0.05140129]
[1764665975566,0.05398408,126.09,126.07,3.24140129]
[1764665983377,7.19248408,126.09,126.07,3.24140129]
[1764665983676,0.05398408,126.09,126.07,3.24140129]
[1764665984569,0.05398408,126.09,126.07,0.05140129]
[1764665984877,0.05398408,126.09,126.07,3.36140129]
[1764665986178,7.19258408,126.09,126.07,3.36140129]
[1764665986377,2.39416458,126.08,126.07,0.05140129]
[1764665987379,9.53296458,126.08,126.07,0.05140129]
[1764665991083,7.1388,126.08,126.07,0.05140129]
[1764665996589,7.1388,126.08,126.07,3.36140129]
[1764665998098,7.1388,126.08,126.07,0.05140129]
[1764665999299,0.05398408,126.09,126.07,3.36140129]
[1764666000399,7.19268408,126.09,126.07,0.05140129]
[1764666000591,7.19268408,126.09,126.07,3.36140129]
[1764666001397,0.05398408,126.09,126.07,3.36140129]
[1764666003302,0.05398408,126.09,126.07,10.50030129]
[1764666003507,0.05398408,126.09,126.08,3.31]
[1764666006799,0.05398408,126.09,126.07,10.50030129]
[1764666007002,0.05398408,126.09,126.08,3.31]
[1764666007305,0.05398408,126.09,126.07,0.05140129]
[1764666010098,7.19228408,126.09,126.07,0.05140129]
[1764666010297,2.39038538,126.08,126.07,0.05140129]
[1764666011103,9.52918538,126.08,126.07,0.05140129]
[1764666011310,0.05398408,126.09,126.07,0.05140129]
[1764666013307,7.19218408,126.09,126.07,0.05140129]
[1764666015308,2.39038538,126.08,126.03,3.18]
[1764666015999,7.1392,126.08,126.03,3.18]
[1764666016399,7.1392,126.08,126.05,3.18]
[1764666016608,7.18978055,126.08,126.05,3.18]
[1764666017308,7.1394,126.07,126.05,3.18]
[1764666019611,0.05058055,126.08,126.05,3.18]
[1764666020208,7.18938055,126.08,126.05,3.18]
[1764666021814,0.05058055,126.08,126.05,3.18]
[1764666023414,0.05058055,126.08,126.05,22.72147244]
[1764666023712,0.05058055,126.08,126.06,3.18]
[1764666025317,0.05058055,126.08,126.06,10.3199]
[1764666025612,0.05058055,126.08,126.07,3.18]
[1764666025919,0.05058055,126.08,126.07,78.2193]
[1764666027006,7.1364,126.13,126.09,3.18]
[1764666027916,0.05346075,126.12,126.1,0.06008175]
[1764666028104,0.05346075,126.12,126.1,3.24008175]
[1764666029311,0.05346075,126.12,126.1,10.37728175]
[1764666029619,0.05346075,126.12,126.11,3.18]
[1764666030816,7.1342,126.17,126.13,3.18]
[1764666031015,114.67538561,126.21,126.13,3.18]
[1764666031812,7.1331,126.18,126.13,10.3159]
[1764666032014,7.18532059,126.18,126.16,0.0537418]
[1764666034512,7.1337,126.17,126.16,0.0537418]
[1764666035814,0.05222059,126.18,126.16,3.2337418]
[1764666036922,0.05222059,126.18,126.17,3.18]
[1764666043525,14.2594,126.25,126.17,3.18]
[1764666043526,7.1318,126.21,126.17,3.18]
[1764666043728,110.9137,126.24,126.17,3.18]
[1764666044120,114.63278561,126.26,126.17,3.18]
[1764666044516,114.63278561,126.26,126.2,0.0520481]
[1764666044921,114.63278561,126.26,126.2,3.4820481]
[1764666045923,7.1302,126.24,126.2,3.4820481]
[1764666048727,10.86408561,126.26,126.2,3.4820481]
[1764666049029,7.129,126.26,126.2,3.4820481]
[1764666049932,7.129,126.26,126.21,3.43]
[1764666050337,3.73508561,126.28,126.21,3.43]
[1764666050530,3.73508561,126.28,126.24,3.43]
[1764666050832,3.73508561,126.28,126.23,3.48025126]
[1764666051337,7.1281,126.27,126.23,3.48025126]
[1764666051636,3.73508561,126.28,126.23,0.05025126]
[1764666051937,7.1293,126.25,126.23,0.05025126]
[1764666052826,3.73508561,126.26,126.23,0.05025126]
[1764666053432,7.1297,126.24,126.23,0.05025126]
[1764666053729,7.1297,126.24,126.14,71.25]
[1764666053730,114.64418561,126.24,126.14,71.25]
[1764666053933,3.73508561,126.22,126.15,3.43]
[1764666054634,0.05702925,126.2,126.18,3.43]
[1764666067447,7.18952925,126.2,126.18,3.43]
[1764666071653,0.05702925,126.2,126.18,3.43]
[1764666072247,3.73508561,126.26,126.18,3.43]
[1764666072447,3.73508561,126.28,126.19,3.31]
[1764666072646,3.73508561,126.28,126.21,3.31]
[1764666072647,114.61048561,126.28,126.21,3.31]
[1764666073248,114.61048561,126.28,126.23,3.36620522]
[1764666074347,7.1292,126.25,126.23,3.36620522]
[1764666074647,110.8702,126.29,126.23,3.36620522]
[1764666075252,7.1281,126.27,126.23,3.36620522]
[1764666076151,71.55508561,126.3,126.23,3.36620522]
[1764666076349,3.73508561,126.3,126.23,3.36620522]
[1764666076652,10.86198561,126.3,126.24,3.31]
[1764666076852,110.8269,126.34,126.27,3.31]
[1764666077052,110.817,126.35,126.29,3.36555465]
[1764666077257,3.88435603,126.34,126.29,3.36555465]
[1764666077457,7.1253,126.32,126.29,3.36555465]
[1764666078457,110.817,126.35,126.29,3.36555465]
[1764666078852,7.1247,126.33,126.29,3.36555465]
[1764666079260,110.8217,126.34,126.29,0.05555465]
[1764666079465,7.1254,126.32,126.29,0.05555465]
[1764666080061,7.1254,126.32,126.29,3.36555465]
[1764666082256,7.1245,126.34,126.29,3.36555465]
[1764666082468,2.38202402,126.33,126.29,3.36555465]
[1764666085962,9.50702402,126.33,126.29,3.36555465]
[1764666088864,2.38202402,126.31,126.29,0.05555465]
[1764666089661,7.1255,126.32,126.29,3.36555465]
[1764666089861,2.38202402,126.33,126.29,3.36555465]
[1764666090865,9.50682402,126.33,126.29,3.36555465]
[1764666091066,2.38202402,126.33,126.29,3.36555465]
[1764666092470,7.1252,126.32,126.29,3.36555465]
[1764666093672,7.1258,126.31,126.29,3.36555465]
[1764666096481,2.38202402,126.33,126.29,3.36555465]
[1764666097370,7.1263,126.31,126.29,3.36555465]
[1764666098281,7.1249,126.33,126.29,3.36555465]
[1764666098475,113.19602402,126.35,126.29,3.36555465]
[1764666098877,7.1258,126.31,126.29,3.36555465]
[1764666099082,2.38202402,126.33,126.29,3.36555465]
[1764666099573,7.1261,126.31,126.29,3.36555465]
[1764666099775,113.20432402,126.34,126.29,3.36555465]
[1764666101479,7.1258,126.31,126.29,3.36555465]
[1764666101874,110.814,126.35,126.29,3.36555465]
[1764666101875,7.1251,126.33,126.29,3.36555465]
[1764666102080,7.1251,126.33,126.3,3.25]
[1764666103880,7.1241,126.35,126.3,3.25]
[1764666104073,7.1241,126.35,126.32,3.25]
[1764666107179,7.1241,126.35,126.31,3.30608271]
[1764666110585,2.38202402,126.36,126.31,3.30608271]
[1764666112288,2.38202402,126.32,126.31,0.05608271]
[1764666114095,2.38202402,126.32,126.26,3.25]
[1764666114293,110.8361,126.33,126.26,3.25]
[1764666114294,2.38202402,126.3,126.26,3.25]
[1764666114988,0.05528073,126.29,126.27,0.05267928]
[1764666115189,0.05528073,126.29,126.28,3.25]
[1764666116898,0.05528073,126.29,126.27,3.30267928]
[1764666118593,7.18218073,126.29,126.27,3.30267928]
[1764666118998,9.50952402,126.28,126.27,0.05267928]
[1764666119497,2.38202402,126.28,126.27,0.05267928]